bitfinex/quotes_BTCUSD_20241101
["timestamp","ask_amount","ask_price","bid_price","bid_amount"]
[1730450167965,0.93312052,69465.0,69464.0,0.083869]
[1730450168185,0.93212052,69465.0,69464.0,0.083869]
[1730450168402,0.93312052,69465.0,69464.0,0.083869]
[1730450168844,0.68265469,69465.0,69464.0,0.083869]
[1730450169283,0.42712564,69465.0,69464.0,0.083869]
[1730450169498,0.67299244,69465.0,69464.0,0.083869]
[1730450169701,0.76925942,69465.0,69464.0,0.083869]
[1730450170344,0.81095173,69465.0,69464.0,0.083869]
[1730450170589,0.76725942,69465.0,69464.0,0.083869]
[1730450171452,0.77125942,69465.0,69464.0,0.083869]
[1730450171912,0.76925942,69465.0,69464.0,0.083869]
[1730450175598,0.77125942,69465.0,69464.0,0.083869]
[1730450175803,0.8675264,69465.0,69464.0,0.002469]
[1730450176214,0.73714544,69465.0,69464.0,0.002469]
[1730450176430,1.02983814,69465.0,69464.0,0.002469]
[1730450176755,1.17539173,69465.0,69464.0,0.002469]
[1730450177167,1.17539173,69465.0,69455.0,0.001642]
[1730450177168,0.002,69456.0,69455.0,0.001642]
[1730450177401,0.61965791,69456.0,69455.0,0.001642]
[1730450177606,0.77885714,69456.0,69455.0,0.00969965]
[1730450177812,0.77885714,69456.0,69455.0,0.001642]
[1730450178041,0.77932297,69456.0,69455.0,0.001642]
[1730450178457,0.68305599,69456.0,69455.0,0.001642]
[1730450178620,0.92488851,69456.0,69455.0,0.001642]
[1730450179113,0.92486168,69456.0,69455.0,0.001642]
[1730450179548,0.7793152,69456.0,69455.0,0.001642]
[1730450179981,0.82612887,69456.0,69455.0,0.001642]
[1730450180195,0.68104822,69456.0,69455.0,0.001642]
[1730450181104,0.68304822,69456.0,69455.0,0.001642]
[1730450181547,0.69289024,69456.0,69455.0,0.001642]
[1730450182632,0.74468722,69456.0,69455.0,0.001642]
[1730450182841,0.74468722,69456.0,69455.0,0.078742]
[1730450182968,0.74458848,69456.0,69455.0,0.078742]
[1730450184090,0.74458848,69456.0,69455.0,0.001642]
[1730450184268,0.74658848,69456.0,69455.0,0.001642]
[1730450185352,0.74458848,69456.0,69455.0,0.001642]
[1730450185510,0.74412265,69456.0,69455.0,0.001642]
[1730450185724,0.74458848,69456.0,69455.0,0.001642]
[1730450186287,0.74658848,69456.0,69455.0,0.001642]
[1730450191772,0.75158848,69456.0,69455.0,0.001642]
[1730450192342,0.75658848,69456.0,69455.0,0.001642]
[1730450193946,0.75158848,69456.0,69455.0,0.001642]
[1730450194195,0.74658848,69456.0,69455.0,0.001642]
[1730450194399,0.75858848,69456.0,69455.0,0.001642]
[1730450197120,0.75868876,69456.0,69455.0,0.001642]
[1730450197528,0.90423665,69456.0,69455.0,0.001642]
[1730450200510,0.75868876,69456.0,69455.0,0.001642]
[1730450201545,0.75368876,69456.0,69455.0,0.001642]
[1730450201964,0.10246583,69455.0,69454.0,0.00159305]
[1730450202257,0.73240888,69455.0,69454.0,0.00159305]
[1730450203300,0.73740888,69455.0,69454.0,0.00159305]
[1730450204590,0.83875324,69455.0,69454.0,0.00159305]
[1730450208510,0.83675324,69455.0,69454.0,0.00159305]
[1730450210497,0.83875324,69455.0,69454.0,0.00159305]
[1730450211159,0.89075636,69455.0,69454.0,0.00159305]
[1730450211381,0.26944783,69453.0,69452.0,0.00638175]
[1730450211597,0.60990074,69453.0,69452.0,0.00638175]
[1730450212239,0.49646583,69444.0,69443.0,0.001628]
[1730450212517,0.49646583,69444.0,69439.0,0.21769576]
[1730450212518,0.26946783,69443.0,69439.0,0.21769576]
[1730450212733,0.60992074,69443.0,69439.0,0.21769576]
[1730450213110,0.60992074,69443.0,69436.0,0.00164]
[1730450215516,0.34587083,69442.0,69441.0,9.1e-07]
[1730450215746,0.68618728,69442.0,69441.0,9.1e-07]
[1730450217172,0.60978728,69442.0,69441.0,9.1e-07]
[1730450218516,0.60778728,69442.0,69441.0,9.1e-07]
[1730450218933,0.60978728,69442.0,69441.0,9.1e-07]
[1730450219316,0.49648083,69437.0,69436.0,0.00164]
[1730450219528,1.052486,69437.0,69436.0,0.00164]
[1730450219741,0.93114164,69437.0,69436.0,0.08444]
[1730450219935,0.93114164,69437.0,69436.0,0.18074]
[1730450220390,0.93314164,69437.0,69436.0,0.18074]
[1730450221224,0.83479728,69437.0,69436.0,0.18074]
[1730450221432,0.93114164,69437.0,69436.0,0.18074]
[1730450221848,0.93314164,69437.0,69436.0,0.18074]
[1730450223296,1.029486,69437.0,69436.0,0.18074]
[1730450223503,0.8703175,69437.0,69436.0,0.00164]
[1730450223718,1.02943345,69437.0,69436.0,0.00164]
[1730450224151,0.93308909,69437.0,69436.0,0.00164]
[1730450224372,0.93108909,69437.0,69436.0,0.00164]
[1730450224590,0.93108909,69437.0,69436.0,0.17114]
[1730450226113,0.5842789,69437.0,69436.0,0.17114]
[1730450226368,0.5415862,69437.0,69436.0,0.17114]
[1730450226577,0.54931062,69437.0,69436.0,0.17114]
[1730450226792,0.4415862,69437.0,69436.0,0.17114]
[1730450227011,0.34710231,69437.0,69436.0,0.17114]
[1730450229906,0.34710231,69437.0,69436.0,0.17614]
[1730450230811,0.39574542,69440.0,69437.0,0.17603417]
[1730450230812,0.06463206,69438.0,69437.0,0.17603417]
[1730450231025,0.18710341,69438.0,69437.0,0.17603417]
[1730450231270,0.06463206,69440.0,69439.0,0.1675]
[1730450231579,0.06463206,69440.0,69439.0,0.17203417]
[1730450231774,0.04308933,69443.0,69442.0,0.1675]
[1730450231981,0.13845525,69443.0,69441.0,0.00453417]
[1730450232207,0.28246025,69442.0,69441.0,0.00453417]
[1730450232626,0.28246025,69442.0,69441.0,0.18163417]
[1730450235468,0.4325515,69442.0,69441.0,0.1771]
[1730450235671,0.73814007,69442.0,69441.0,0.0781]
[1730450235895,0.244013,69438.0,69437.0,0.0942]
[1730450236140,0.55316608,69438.0,69437.0,0.0942]
[1730450236366,0.246015,69437.0,69436.0,0.08224]
[1730450236599,0.41653801,69437.0,69436.0,0.08224]
[1730450237029,0.41656106,69437.0,69436.0,0.08224]
[1730450237236,0.56665231,69437.0,69436.0,0.08224]
[1730450237448,0.41656106,69437.0,69436.0,0.08224]
[1730450238099,0.42656106,69437.0,69436.0,0.08224]
[1730450238947,0.42756106,69437.0,69436.0,0.08224]
[1730450239187,0.42656106,69437.0,69436.0,0.08224]
[1730450239407,0.43856618,69437.0,69436.0,0.08224]
[1730450239629,0.72511268,69437.0,69436.0,0.08224]
[1730450239843,0.57502143,69437.0,69436.0,0.08224]
[1730450240690,0.57505672,69437.0,69436.0,0.08224]
[1730450241129,0.72514797,69437.0,69436.0,0.08224]
[1730450241556,0.57505672,69437.0,69436.0,0.08224]
[1730450241779,0.57506774,69437.0,69436.0,0.08224]
[1730450242201,0.97715899,69437.0,69436.0,0.08224]
[1730450242631,0.244025,69432.0,69431.0,0.0942]
[1730450242838,0.71867455,69432.0,69431.0,0.0942]
[1730450243072,0.71867455,69432.0,69422.0,0.21769576]
[1730450243073,0.56115062,69432.0,69423.0,0.095]
[1730450243287,0.29413325,69424.0,69423.0,0.095]
[1730450243507,0.44608497,69424.0,69423.0,0.095]
[1730450243740,0.48919229,69424.0,69423.0,0.095]
[1730450243946,0.44608497,69424.0,69423.0,0.095]
[1730450244831,0.44608902,69424.0,69423.0,0.095]
[1730450245656,0.44608902,69424.0,69423.0,0.1732]
[1730450245781,0.44608902,69424.0,69423.0,0.17773417]
[1730450246194,0.44608956,69424.0,69423.0,0.1732]
[1730450246612,0.44608956,69424.0,69423.0,0.17773417]
[1730450246830,0.44608956,69424.0,69423.0,0.1732]
[1730450247318,0.44608956,69424.0,69423.0,0.17773417]
[1730450248185,0.4460901,69424.0,69423.0,0.17773417]
[1730450248402,0.4460901,69424.0,69423.0,0.1732]
[1730450250220,0.51075062,69424.0,69423.0,0.1732]
[1730450250421,0.50928893,69424.0,69423.0,0.1732]
[1730450250755,0.5092991,69424.0,69423.0,0.1732]
[1730450251700,0.5092991,69424.0,69423.0,0.17773417]
[1730450252592,0.60380136,69424.0,69423.0,0.17773417]
[1730450253617,0.45371011,69424.0,69423.0,0.18273417]
[1730450254091,0.35922278,69424.0,69423.0,0.18273417]
[1730450254301,0.29453716,69424.0,69423.0,0.18273417]
[1730450254585,0.35922907,69424.0,69423.0,0.18273417]
[1730450255398,0.29453716,69424.0,69423.0,0.18273417]
[1730450256057,0.29453704,69424.0,69423.0,0.18273417]
[1730450256279,0.4015829,69424.0,69423.0,0.18273417]
[1730450256510,0.4015829,69424.0,69423.0,0.18437817]
[1730450256720,0.31614941,69424.0,69423.0,0.18437817]
[1730450256942,0.31614941,69424.0,69423.0,0.19261677]
[1730450257362,0.4024049,69424.0,69423.0,0.18437817]
[1730450259451,0.38890342,69424.0,69423.0,0.18437817]
[1730450259676,0.40240593,69424.0,69423.0,0.18437817]
[1730450261829,0.40240593,69424.0,69423.0,0.174844]
[1730450261830,0.55460569,69424.0,69423.0,0.174844]
[1730450262074,0.64400366,69424.0,69423.0,0.001644]
[1730450262219,0.002,69422.0,69417.0,0.092]
[1730450262429,0.28809,69423.0,69417.0,0.092]
[1730450262430,0.144054,69418.0,69417.0,0.092]
[1730450262645,0.35190818,69418.0,69417.0,0.092]
[1730450263257,0.4687555,69418.0,69417.0,0.092]
[1730450264324,0.46871979,69418.0,69417.0,0.092]
[1730450264947,0.46871979,69418.0,69417.0,0.09653417]
[1730450265178,0.55498918,69418.0,69417.0,0.09653417]
[1730450265382,0.55498918,69418.0,69417.0,0.17913417]
[1730450266034,0.55498918,69418.0,69413.0,0.001628]
[1730450266035,0.246063,69414.0,69413.0,0.001628]
[1730450266266,0.74242175,69414.0,69413.0,0.001628]
[1730450266492,0.83774065,69414.0,69413.0,0.001628]
[1730450266702,0.78512744,69414.0,69413.0,0.001628]
[1730450267165,0.58643385,69414.0,69413.0,0.001628]
[1730450267387,0.6350222,69414.0,69413.0,0.001628]
[1730450267605,0.6360222,69414.0,69413.0,0.001628]
[1730450267799,0.6350222,69414.0,69413.0,0.001628]
[1730450268005,0.6410222,69414.0,69413.0,0.001628]
[1730450268213,0.59831651,69414.0,69413.0,0.001628]
[1730450269265,0.59031651,69414.0,69413.0,0.001628]
[1730450269533,0.65002794,69414.0,69413.0,0.001628]
[1730450269774,0.79111919,69414.0,69413.0,0.001628]
[1730450270009,0.78511919,69414.0,69413.0,0.001628]
[1730450270751,0.80211919,69414.0,69413.0,0.001628]
[1730450270960,0.79311919,69414.0,69413.0,0.001628]
[1730450271142,0.78511919,69414.0,69413.0,0.001628]
[1730450271362,0.79611919,69414.0,69413.0,0.001628]
[1730450271775,0.29418125,69401.0,69398.0,0.09433]
[1730450271996,0.48122485,69401.0,69398.0,0.09433]
[1730450272237,0.5243047,69401.0,69400.0,0.22567191]
[1730450272427,0.5243047,69401.0,69400.0,0.0001]
[1730450272428,0.48122485,69401.0,69400.0,0.0001]
[1730450273750,0.4326365,69401.0,69400.0,0.0001]
[1730450273973,0.48113719,69401.0,69400.0,0.0001]
[1730450275646,0.48113719,69401.0,69400.0,0.0001]
[1730450276724,0.48413719,69401.0,69400.0,0.0001]
[1730450276925,0.48613719,69401.0,69400.0,0.0001]
[1730450277421,0.51572754,69401.0,69400.0,0.0001]
[1730450277655,0.48611328,69401.0,69400.0,0.0001]
[1730450277887,0.55067265,69401.0,69400.0,0.0001]
[1730450278757,0.54567265,69401.0,69400.0,0.0001]
[1730450278970,0.64667265,69401.0,69400.0,0.0001]
[1730450279176,0.5841131,69401.0,69400.0,0.0001]
[1730450279386,0.5821131,69401.0,69400.0,0.0001]
[1730450279604,0.5811131,69401.0,69400.0,0.0001]
[1730450279819,0.5841131,69401.0,69400.0,0.0001]
[1730450280030,0.5841131,69401.0,69400.0,0.001742]
[1730450280250,0.82910748,69401.0,69400.0,0.001742]
[1730450280467,0.83110748,69401.0,69400.0,0.001742]
[1730450280695,0.78063088,69401.0,69400.0,0.001742]
[1730450280909,0.82908544,69401.0,69400.0,0.001742]
[1730450281111,0.74300603,69401.0,69400.0,0.001742]
[1730450281321,0.82912964,69401.0,69400.0,0.001742]
[1730450283244,0.74302137,69401.0,69400.0,0.001742]
[1730450283475,0.74301451,69401.0,69400.0,0.001742]
[1730450283924,0.82912278,69401.0,69400.0,0.001742]
[1730450284101,0.74301451,69401.0,69400.0,0.001742]
[1730450284354,0.82912278,69401.0,69400.0,0.001742]
[1730450284783,0.002,69399.0,69398.0,0.00163]
[1730450285033,0.51907766,69399.0,69398.0,0.00163]
[1730450285243,0.67599702,69399.0,69398.0,0.00163]
[1730450285682,0.66254122,69399.0,69398.0,0.09343]
[1730450286106,0.41754115,69399.0,69398.0,0.09343]
[1730450286307,0.48209058,69399.0,69398.0,0.09343]
[1730450286531,0.4605571,69399.0,69398.0,0.09343]
[1730450287221,0.439045,69399.0,69398.0,0.09343]
[1730450287631,0.47404599,69399.0,69398.0,0.09343]
[1730450288044,0.47404599,69399.0,69398.0,0.17423]
[1730450288467,0.47404599,69399.0,69398.0,0.18782441]
[1730450289164,0.474059,69399.0,69398.0,0.18782441]
[1730450289379,0.43102167,69399.0,69398.0,0.18782441]
[1730450290292,0.43102167,69399.0,69398.0,0.17423]
[1730450290519,0.43104013,69399.0,69398.0,0.17423]
[1730450294203,0.39603831,69399.0,69398.0,0.17423]
[1730450294402,0.43111455,69399.0,69398.0,0.17423]
[1730450294823,0.43111455,69399.0,69398.0,0.09343]
[1730450294983,0.47415604,69399.0,69398.0,0.00163]
[1730450295568,0.47415604,69399.0,69395.0,0.00453417]
[1730450295569,0.1441,69396.0,69395.0,0.00453417]
[1730450295865,0.33112055,69396.0,69395.0,0.00453417]
[1730450296500,0.30953517,69396.0,69395.0,0.00453417]
[1730450296721,0.44613736,69396.0,69395.0,0.00453417]
[1730450297136,0.30203736,69396.0,69395.0,0.00453417]
[1730450297355,0.29604611,69396.0,69395.0,0.00453417]
[1730450297568,0.15194611,69396.0,69395.0,0.00453417]
[1730450297765,0.29606285,69396.0,69395.0,0.00453417]
[1730450298217,0.15196285,69396.0,69395.0,0.00453417]
[1730450298430,0.29606285,69396.0,69395.0,0.00453417]
[1730450301132,0.144104,69394.0,69393.0,0.18003417]
[1730450301452,0.1576116,69394.0,69393.0,0.18503417]
[1730450301891,0.0135076,69394.0,69393.0,0.18503417]
[1730450302089,0.1576116,69394.0,69393.0,0.19863468]
[1730450302622,0.1576116,69394.0,69393.0,0.34274068]
[1730450302623,0.0135076,69394.0,69393.0,0.34274068]
[1730450305080,0.0135076,69394.0,69393.0,0.34356268]
[1730450308082,0.1576116,69394.0,69393.0,0.19945668]
[1730450308253,0.144104,69394.0,69393.0,0.19945668]
[1730450308474,0.15761009,69394.0,69393.0,0.19945668]
[1730450310480,0.01350609,69394.0,69393.0,0.19945668]
[1730450311940,0.144104,69394.0,69393.0,0.19945668]
[1730450312183,0.15760833,69394.0,69393.0,0.19945668]
[1730450312397,0.144104,69394.0,69393.0,0.19945668]
[1730450312602,0.15760816,69394.0,69393.0,0.19945668]
[1730450313221,0.31713238,69394.0,69393.0,0.18585617]
[1730450313419,0.40356598,69394.0,69393.0,0.18585617]
[1730450313855,0.40356598,69394.0,69393.0,0.1994217]
[1730450315164,0.45558763,69394.0,69393.0,0.1994217]
[1730450315425,0.45558763,69394.0,69393.0,0.11015617]
[1730450315633,0.45558763,69394.0,69393.0,0.10515617]
[1730450315879,0.45558763,69394.0,69393.0,0.11015617]
[1730450316067,0.31767321,69394.0,69393.0,0.11015617]
[1730450316264,0.47722844,69394.0,69393.0,0.11015617]
[1730450316467,0.58528875,69394.0,69393.0,0.11015617]
[1730450317780,0.59879638,69394.0,69393.0,0.11015617]
[1730450318847,0.59879638,69394.0,69393.0,0.10515617]
[1730450319053,0.59879638,69394.0,69393.0,0.11015617]
[1730450319266,0.49073607,69394.0,69393.0,0.11015617]
[1730450319476,0.59880248,69394.0,69393.0,0.11015617]
[1730450319680,0.49073607,69394.0,69393.0,0.11015617]
[1730450320132,0.5988025,69394.0,69393.0,0.11015617]
[1730450320346,0.49073607,69394.0,69393.0,0.11015617]
[1730450321212,0.49073607,69394.0,69393.0,0.10515617]
[1730450321862,0.45562288,69394.0,69393.0,0.10515617]
[1730450322090,0.49074472,69394.0,69393.0,0.11015617]
[1730450322994,0.49074486,69394.0,69393.0,0.11015617]
[1730450323853,0.49074486,69394.0,69393.0,0.00535617]
[1730450325133,0.49074551,69394.0,69393.0,0.00535617]
[1730450326888,0.49074551,69394.0,69393.0,0.10645617]
[1730450327126,0.31625461,69394.0,69393.0,0.35284592]
[1730450327339,0.11346897,69394.0,69393.0,0.49695192]
[1730450327587,0.09185526,69394.0,69393.0,0.49695192]
[1730450328260,0.04863103,69394.0,69393.0,0.49695192]
[1730450328706,0.09185526,69394.0,69393.0,0.20256416]
[1730450328937,0.04863103,69394.0,69393.0,0.20256416]
[1730450329157,0.04862844,69394.0,69393.0,0.20256416]
[1730450332173,0.2575614,69394.0,69393.0,0.20256416]
[1730450332423,0.35228393,69394.0,69393.0,0.20256416]
[1730450332636,0.42521626,69394.0,69393.0,0.20256416]
[1730450332847,0.29462078,69394.0,69393.0,0.20256416]
[1730450333124,0.20818242,69394.0,69393.0,0.20256416]
[1730450333565,0.29462103,69394.0,69393.0,0.20256416]
[1730450333804,0.29462113,69394.0,69393.0,0.20256416]
[1730450334026,0.20818252,69394.0,69393.0,0.20256416]
[1730450334490,0.13506964,69394.0,69393.0,0.20256416]
[1730450334714,0.43874752,69394.0,69393.0,0.20256416]
[1730450334933,0.43874899,69394.0,69393.0,0.20256416]
[1730450335393,0.43874945,69394.0,69393.0,0.18895617]
[1730450335600,0.43874945,69394.0,69393.0,0.20252175]
[1730450336849,0.33878979,69394.0,69393.0,0.20252175]
[1730450337054,0.46036269,69394.0,69393.0,0.20252175]
[1730450337259,0.35229955,69394.0,69393.0,0.20252175]
[1730450338956,0.43875389,69394.0,69393.0,0.20252175]
[1730450339185,0.19273757,69394.0,69393.0,0.20252175]
[1730450339387,0.35230607,69394.0,69393.0,0.20252175]
[1730450339794,0.33879961,69394.0,69393.0,0.20252175]
[1730450339996,0.43876463,69394.0,69393.0,0.20252175]
[1730450342217,0.42525412,69394.0,69393.0,0.20252175]
[1730450342426,0.43876418,69394.0,69393.0,0.20252175]
[1730450342638,0.3523223,69394.0,69393.0,0.20252175]
[1730450342817,0.46039841,69394.0,69393.0,0.20252175]
[1730450343059,0.46039841,69394.0,69393.0,0.18895617]
[1730450343496,0.46039841,69394.0,69393.0,0.10645617]
[1730450343703,0.3523223,69394.0,69393.0,0.01035617]
[1730450345959,0.30368513,69394.0,69393.0,0.01035617]
[1730450346060,0.49078077,69394.0,69393.0,0.01035617]
[1730450346269,0.49078077,69394.0,69393.0,0.00535617]
[1730450346715,0.49078077,69394.0,69393.0,0.01035617]
[1730450347382,0.49078077,69394.0,69393.0,0.00535617]
[1730450347607,0.49078077,69394.0,69393.0,0.01035617]
[1730450348129,0.20822152,69394.0,69393.0,0.01035617]
[1730450348370,0.20822152,69394.0,69393.0,0.10395617]
[1730450348794,0.20822152,69394.0,69393.0,0.11750514]
[1730450349433,0.25957193,69394.0,69393.0,0.11750514]
[1730450349651,0.27308228,69394.0,69393.0,0.11750514]
[1730450350713,0.1866027,69394.0,69393.0,0.11750514]
[1730450351353,0.2082189,69394.0,69393.0,0.11750514]
[1730450351576,0.04863777,69394.0,69393.0,0.11750514]
[1730450351997,0.294731,69394.0,69393.0,0.11750514]
[1730450352663,0.20825212,69394.0,69393.0,0.11750514]
[1730450352853,0.29473249,69394.0,69393.0,0.11750514]
[1730450353272,0.29473128,69394.0,69393.0,0.13750514]
[1730450353759,0.2082514,69394.0,69393.0,0.13750514]
[1730450356418,0.29473266,69394.0,69393.0,0.13750514]
[1730450356650,0.29474995,69394.0,69393.0,0.13750514]
[1730450356888,0.20827023,69394.0,69393.0,0.13750514]
[1730450358492,0.18664312,69394.0,69393.0,0.13750514]
[1730450358996,0.02702723,69394.0,69393.0,0.36341114]
[1730450359234,0.02702723,69394.0,69393.0,0.42089505]
[1730450359235,0.01351694,69394.0,69393.0,0.42089505]
[1730450359482,0.0486595,69394.0,69393.0,0.42089505]
[1730450359949,0.0486595,69394.0,69393.0,0.41701806]
[1730450361348,0.0486595,69394.0,69393.0,0.21542815]
[1730450362654,0.0486595,69394.0,69393.0,0.35953415]
[1730450362859,0.09188221,69394.0,69393.0,0.35953415]
[1730450363505,0.07834382,69394.0,69393.0,0.35953415]
[1730450363711,0.09185194,69394.0,69393.0,0.35953415]
[1730450364134,0.04862923,69394.0,69393.0,0.35953415]
[1730450364343,0.09185153,69394.0,69393.0,0.21542815]
[1730450364963,0.04862923,69394.0,69393.0,0.21542815]
[1730450366051,0.09185208,69394.0,69393.0,0.21542815]
[1730450366479,0.0918522,69394.0,69393.0,0.35953415]
[1730450366688,0.09185227,69394.0,69393.0,0.21542815]
[1730450366905,0.04862923,69394.0,69393.0,0.21542815]
[1730450368794,0.27918066,69394.0,69393.0,0.13362815]
[1730450369063,0.4387375,69394.0,69393.0,0.12395617]
[1730450369476,0.4387375,69394.0,69393.0,0.13362629]
[1730450369924,0.4387375,69394.0,69393.0,0.04002629]
[1730450370587,0.4387471,69394.0,69393.0,0.04002629]
[1730450371023,0.35229007,69394.0,69393.0,0.04002629]
[1730450371502,0.19273323,69394.0,69393.0,0.04002629]
[1730450371725,0.35232468,69394.0,69393.0,0.04002629]
[1730450372137,0.46040778,69394.0,69393.0,0.04002629]
[1730450373092,0.35232468,69394.0,69393.0,0.04002629]
[1730450374231,0.33883644,69394.0,69393.0,0.04002629]
[1730450374451,0.46044662,69394.0,69393.0,0.04002629]
[1730450374692,0.46045128,69394.0,69393.0,0.04002629]
[1730450374911,0.3523506,69394.0,69393.0,0.04002629]
[1730450375122,0.3388411,69394.0,69393.0,0.04002629]
[1730450375334,0.35235082,69394.0,69393.0,0.04002629]
[1730450375545,0.33884115,69394.0,69393.0,0.04002629]
[1730450375760,0.4772964,69394.0,69393.0,0.04002629]
[1730450375975,0.59890701,69394.0,69393.0,0.03035617]
[1730450378562,0.59890942,69394.0,69393.0,0.03789462]
[1730450380357,0.59080874,69394.0,69393.0,0.02836045]
[1730450380600,0.8169752,69394.0,69393.0,0.020822]
[1730450380826,0.67289345,69394.0,69392.0,0.00099007]
[1730450381054,0.49082302,69393.0,69392.0,0.00099007]
[1730450381295,0.77903602,69393.0,69392.0,0.00099007]
[1730450381775,0.94907636,69393.0,69387.0,0.005]
[1730450381990,0.94907636,69393.0,69385.0,0.00262007]
[1730450381991,0.144121,69386.0,69385.0,0.00262007]
[1730450382230,0.55029442,69386.0,69385.0,0.00262007]
[1730450382458,0.49083222,69386.0,69385.0,0.00262007]
[1730450383808,0.59888146,69386.0,69385.0,0.00262007]
[1730450384220,0.59887933,69386.0,69385.0,0.00262007]
[1730450385366,0.59873898,69386.0,69385.0,0.00262007]
[1730450385602,0.4907141,69386.0,69385.0,0.00262007]
[1730450385836,0.59873898,69386.0,69385.0,0.00262007]
[1730450386519,0.49065733,69386.0,69385.0,0.00163]
[1730450386943,0.58710791,69386.0,69385.0,0.00262007]
[1730450388511,0.6734829,69386.0,69385.0,0.00262007]
[1730450389910,0.6734829,69386.0,69385.0,0.00163]
[1730450390134,0.6734829,69386.0,69385.0,0.00262007]
[1730450390582,0.58710791,69386.0,69385.0,0.00163]
[1730450390795,0.6734829,69386.0,69385.0,0.00163]
[1730450391013,0.6734829,69386.0,69385.0,0.00262007]
[1730450393395,0.58710791,69386.0,69385.0,0.00262007]
[1730450394477,0.67343766,69386.0,69385.0,0.00262007]
[1730450397073,0.62486207,69386.0,69385.0,0.00262007]
[1730450397368,0.67342917,69386.0,69385.0,0.00262007]
[1730450397594,0.67343132,69386.0,69385.0,0.00262007]
[1730450398465,0.58710157,69386.0,69385.0,0.00262007]
[1730450399559,0.58687777,69386.0,69385.0,0.00262007]
[1730450400650,0.57338691,69386.0,69385.0,0.00262007]
[1730450400880,0.58688725,69386.0,69385.0,0.00262007]
[1730450402239,0.58688101,69386.0,69385.0,0.00262007]
[1730450402685,0.42760556,69386.0,69385.0,0.00262007]
[1730450403218,0.53829719,69386.0,69385.0,0.00262007]
[1730450403444,0.5868839,69386.0,69385.0,0.00262007]
[1730450403681,0.586882,69386.0,69385.0,0.00262007]
[1730450404161,0.42761354,69386.0,69385.0,0.00262007]
[1730450405336,0.58688172,69386.0,69385.0,0.00262007]
[1730450405557,0.67317699,69386.0,69385.0,0.00262007]
[1730450406863,0.6732365,69386.0,69385.0,0.00262007]
[1730450407090,0.67325242,69386.0,69385.0,0.00262007]
[1730450407322,0.67325877,69386.0,69385.0,0.00262007]
[1730450407540,0.76094514,69386.0,69385.0,0.00163]
[1730450407762,0.144131,69381.0,69380.0,0.00099007]
[1730450407991,0.144139,69377.0,69376.0,0.00599007]
[1730450408207,0.58696314,69377.0,69376.0,0.00599007]
[1730450408894,0.58696314,69377.0,69373.0,0.00099007]
[1730450408895,0.144146,69374.0,69373.0,0.00099007]
[1730450409104,0.42766081,69374.0,69373.0,0.00099007]
[1730450409345,0.52916784,69374.0,69372.0,0.00262007]
[1730450409568,0.57686006,69373.0,69372.0,0.00262007]
[1730450409835,0.57686692,69373.0,69372.0,0.00262007]
[1730450410065,0.49053991,69373.0,69372.0,0.00262007]
[1730450410312,0.57686692,69373.0,69372.0,0.00262007]
[1730450410521,0.56337298,69373.0,69372.0,0.00262007]
[1730450410736,0.59038982,69373.0,69372.0,0.00262007]
[1730450411214,0.50406281,69373.0,69372.0,0.00262007]
[1730450411449,0.34474199,69373.0,69372.0,0.00262007]
[1730450411678,0.504039,69373.0,69372.0,0.00262007]
[1730450412335,0.40946279,69373.0,69372.0,0.00262007]
[1730450412563,0.34474199,69373.0,69372.0,0.00262007]
[1730450413054,0.40946749,69373.0,69372.0,0.00762007]
[1730450413289,0.40946749,69373.0,69372.0,0.17752007]
[1730450413290,0.06213874,69373.0,69372.0,0.17752007]
[1730450413753,0.06213874,69373.0,69372.0,0.1861182]
[1730450413964,0.06210918,69373.0,69372.0,0.1861182]
[1730450414796,0.20625718,69373.0,69372.0,0.1861182]
[1730450416322,0.19274865,69373.0,69372.0,0.1861182]
[1730450416774,0.04860065,69373.0,69372.0,0.1861182]
[1730450417436,0.144146,69374.0,69372.0,0.1861182]
[1730450417659,0.04859982,69373.0,69372.0,0.1861182]
[1730450419581,0.144146,69374.0,69373.0,0.00099007]
[1730450419797,0.04860122,69374.0,69373.0,0.00099007]
[1730450420002,0.04860122,69374.0,69373.0,0.00953897]
[1730450420225,0.01350034,69374.0,69373.0,0.00953897]
[1730450420493,0.04860198,69374.0,69373.0,0.00953897]
[1730450420929,0.04860198,69374.0,69373.0,0.01453897]
[1730450421153,0.04860216,69374.0,69373.0,0.01453897]
[1730450422906,0.19274816,69374.0,69373.0,0.01453897]
[1730450423536,0.23590409,69374.0,69373.0,0.01453897]
[1730450423787,0.09175809,69374.0,69373.0,0.01453897]
[1730450424632,0.04315593,69374.0,69373.0,0.0119743]
[1730450424840,0.0917663,69374.0,69373.0,0.0119743]
[1730450425537,0.04861037,69374.0,69373.0,0.0119743]
[1730450426388,0.11334427,69374.0,69373.0,0.0119743]
[1730450429745,0.04861037,69374.0,69373.0,0.0119743]
[1730450432070,0.03512147,69374.0,69373.0,0.0119743]
[1730450432278,0.04862973,69374.0,69373.0,0.01636727]
[1730450432688,0.04862973,69374.0,69373.0,0.16051527]
[1730450432901,0.04862973,69374.0,69373.0,0.16339795]
[1730450433104,0.04862973,69374.0,69373.0,0.25939795]
[1730450433483,0.04862973,69374.0,69373.0,0.3606306]
[1730450433695,0.04862973,69374.0,69373.0,0.43654792]
[1730450434481,0.04862973,69374.0,69373.0,0.44654792]
[1730450435468,0.04862973,69374.0,69373.0,0.12759992]
[1730450435469,0.02161037,69374.0,69373.0,0.12759992]
[1730450435748,0.04862333,69374.0,69373.0,0.17051527]
[1730450435964,0.04862343,69374.0,69373.0,0.17051527]
[1730450436172,0.04862343,69374.0,69373.0,0.34891527]
[1730450437038,0.04862343,69374.0,69373.0,0.34391527]
[1730450439149,0.01350658,69374.0,69373.0,0.34391527]
[1730450439367,0.04861342,69374.0,69373.0,0.34391527]
[1730450439569,0.04860947,69374.0,69373.0,0.34391527]
[1730450442950,0.04320137,69380.0,69379.0,0.00099007]
[1730450443185,0.06480829,69380.0,69379.0,0.00099007]
[1730450443377,0.09181731,69380.0,69379.0,0.00099007]
[1730450443595,0.09181731,69380.0,69379.0,0.01636481]
[1730450443806,0.09181731,69380.0,69379.0,0.10686481]
[1730450444456,0.09181731,69380.0,69379.0,0.01636481]
[1730450444665,0.33120419,69380.0,69379.0,0.01636481]
[1730450444864,0.33120419,69380.0,69379.0,0.00599007]
[1730450445073,0.57708281,69380.0,69379.0,0.00599007]
[1730450445510,0.43294981,69380.0,69379.0,0.00599007]
[1730450446148,0.39600891,69380.0,69379.0,0.00599007]
[1730450446595,0.23837121,69380.0,69379.0,0.00599007]
[1730450446813,0.25187515,69380.0,69379.0,0.00599007]
[1730450447446,0.39600815,69380.0,69379.0,0.00599007]
[1730450447865,0.1134199,69380.0,69379.0,0.00599007]
[1730450448363,0.2575529,69380.0,69379.0,0.00599007]
[1730450450328,0.25755655,69380.0,69379.0,0.00599007]
[1730450451198,0.19275261,69380.0,69379.0,0.00599007]